fUST/lending_fUST_20250622
["ID","MTS","AMOUNT","RATE_DAILY","PERIOD"]
[366887346,1750551047291,-460.0,0.00021917,2]
[366887347,1750551047301,-460.0,0.00021917,2]
[366887348,1750551047310,-460.0,0.00021917,2]
[366887349,1750551047319,-460.0,0.00021917,2]
[366887350,1750551047329,-460.0,0.00021917,2]
[366887351,1750551047340,-460.0,0.00021917,2]
[366887352,1750551047350,-460.0,0.00021917,2]
[366887353,1750551047360,-426.77227579,0.00021917,2]
[366887354,1750551047370,-438.77755687,0.00021917,2]
[366887355,1750551047381,-460.0,0.00021917,2]
[366887356,1750551047392,-437.5960337,0.00021917,2]
[366887357,1750551047402,-460.0,0.00021917,2]
[366887358,1750551047413,-460.0,0.00021917,2]
[366887359,1750551047422,-460.0,0.00021917,2]
[366887360,1750551047432,-175.1,0.00021917,2]
[366887361,1750551047442,-460.0,0.00021917,2]
[366887362,1750551047451,-460.0,0.00021917,2]
[366887363,1750551047460,-460.0,0.00021917,2]
[366887364,1750551047469,-460.0,0.00021917,2]
[366887365,1750551047478,-460.0,0.00021917,2]
[366887366,1750551047487,-460.0,0.00021917,2]
[366887367,1750551047496,-460.0,0.00021917,2]
[366887368,1750551047504,-460.0,0.00021917,2]
[366887369,1750551047513,-460.0,0.00021917,2]
[366887370,1750551047522,-460.0,0.00021917,2]
[366887371,1750551047532,-460.0,0.00021917,2]
[366887372,1750551047541,-460.0,0.00021917,2]
[366887373,1750551047550,-460.0,0.00021917,2]
[366887374,1750551047559,-460.0,0.00021917,2]
[366887375,1750551047568,-460.0,0.00021917,2]
[366887376,1750551047577,-547.55,0.00021917,2]
[366887377,1750551047587,-460.0,0.00021917,2]
[366887378,1750551047597,-295.85,0.00021917,2]
[366887379,1750551047606,-547.55,0.00021917,2]
[366887380,1750551047615,-460.0,0.00021917,2]
[366887381,1750551047624,-547.55,0.00021917,2]
[366887382,1750551047633,-464.44615171,0.00021917,2]
[366887383,1750551047642,-460.0,0.00021917,2]
[366887384,1750551047651,-547.55,0.00021917,2]
[366887385,1750551047661,-460.0,0.00021917,2]
[366887386,1750551047669,-547.55,0.00021917,2]
[366887387,1750551047678,-460.0,0.00021917,2]
[366887388,1750551047688,-547.55,0.00021917,2]
[366887389,1750551047697,-460.0,0.00021917,2]
[366887390,1750551047706,-547.55,0.00021917,2]
[366887391,1750551047777,-460.0,0.00021917,2]
[366887392,1750551047786,-547.55,0.00021917,2]
[366887393,1750551047795,-460.0,0.00021917,2]
[366887394,1750551047804,-547.55,0.00021917,2]
[366887395,1750551047813,-460.0,0.00021917,2]
[366887396,1750551047822,-460.0,0.00021917,2]
[366887397,1750551047832,-547.55,0.00021917,2]
[366887398,1750551047843,-460.0,0.00021917,2]
[366887399,1750551047852,-547.55,0.00021917,2]
[366887400,1750551047863,-547.55,0.00021917,2]
[366887401,1750551047873,-547.55,0.00021917,2]
[366887402,1750551047882,-547.55,0.00021917,2]
[366887403,1750551047891,-547.55,0.00021917,2]
[366887404,1750551047901,-547.55,0.00021917,2]
[366887405,1750551047915,-460.0,0.00021917,2]
[366887406,1750551047924,-547.55,0.00021917,2]
[366887407,1750551047935,-547.55,0.00021917,2]
[366887408,1750551047946,-460.0,0.00021917,2]
[366887409,1750551047955,-547.55,0.00021917,2]
[366887410,1750551047964,-547.55,0.00021917,2]
[366887411,1750551047973,-547.55,0.00021917,2]
[366887412,1750551047984,-547.55,0.00021917,2]
[366887413,1750551047994,-547.55,0.00021917,2]
[366887414,1750551048003,-547.6941529,0.00021917,2]
[366887415,1750551048013,-500.0,0.00021917,2]
[366887416,1750551048021,-460.0,0.00021917,2]
[366887417,1750551048031,-500.0,0.00021917,2]
[366887418,1750551048040,-460.0,0.00021917,2]
[366887419,1750551048049,-460.0,0.00021917,2]
[366887420,1750551048058,-500.0,0.00021917,2]
[366887421,1750551048068,-339.74726598,0.00021917,2]
[366887422,1750551048078,-500.0,0.00021917,2]
[366887423,1750551048088,-500.0,0.00021917,2]
[366887424,1750551048097,-500.0,0.00021917,2]
[366887425,1750551048106,-500.0,0.00021917,2]
[366887426,1750551048115,-500.0,0.00021917,2]
[366887427,1750551048123,-168.38652834,0.00021917,2]
[366887428,1750551048132,-400.0,0.00021917,2]
[366887429,1750551048141,-460.0,0.00021917,2]
[366887430,1750551048150,-377.27320687,0.00021917,2]
[366887431,1750551048159,-460.0,0.00021917,2]
[366887432,1750551048170,-460.0,0.00021917,2]
[366887433,1750551048179,-460.0,0.00021917,2]
[366887434,1750551048189,-460.0,0.00021917,2]
[366887435,1750551048198,-179.30849331,0.00021917,2]
[366887436,1750551048207,-460.0,0.00021917,2]
[366887437,1750551048216,-460.0,0.00021917,2]
[366887438,1750551048225,-460.0,0.00021917,2]
[366887439,1750551048235,-460.0,0.00021917,2]
[366887440,1750551048245,-460.0,0.00021917,2]
[366887441,1750551048254,-460.0,0.00021917,2]
[366887442,1750551048263,-460.0,0.00021917,2]
[366887443,1750551048273,-400.0,0.00021917,2]
[366887444,1750551048282,-460.0,0.00021917,2]
[366887445,1750551048291,-460.0,0.00021917,2]
[366887446,1750551048300,-460.0,0.00021917,2]
[366887447,1750551048309,-406.55056579,0.00021917,2]
[366887448,1750551048318,-372.01325315,0.00021917,2]
[366887449,1750551048327,-460.0,0.00021917,2]
[366887450,1750551048338,-460.0,0.00021917,2]
[366887451,1750551048348,-601.98559358,0.00021917,2]
[366887452,1750551048357,-151.0,0.00021917,2]
[366887453,1750551048367,-460.0,0.00021917,2]
[366887454,1750551048377,-460.0,0.00021917,2]
[366887455,1750551048387,-460.0,0.00021917,2]
[366887456,1750551048396,-460.0,0.00021917,2]
[366887457,1750551048406,-348.36319504,0.00021917,2]
[366887458,1750551048416,-460.0,0.00021917,2]
[366887459,1750551048425,-460.0,0.00021917,2]
[366887460,1750551048435,-460.0,0.00021917,2]
[366887461,1750551048445,-460.0,0.00021917,2]
[366887462,1750551048455,-460.0,0.00021917,2]
[366887463,1750551048464,-460.0,0.00021917,2]
[366887464,1750551048474,-460.0,0.00021917,2]
[366887465,1750551048484,-460.0,0.00021917,2]
[366887466,1750551048493,-460.0,0.00021917,2]
[366887467,1750551048503,-456.45879295,0.00021917,2]
[366887468,1750551048512,-460.0,0.00021917,2]
[366887469,1750551048521,-460.0,0.00021917,2]
[366887470,1750551048531,-460.0,0.00021917,2]
[366887471,1750551048540,-561.62760205,0.00021917,2]
[366887472,1750551048549,-460.0,0.00021917,2]
[366887473,1750551048558,-460.0,0.00021917,2]
[366887474,1750551048568,-460.0,0.00021917,2]
[366887475,1750551048577,-460.0,0.00021917,2]
[366887476,1750551048589,-460.0,0.00021917,2]
[366887477,1750551048598,-460.0,0.00021917,2]
[366887478,1750551048607,-440.0,0.00021917,2]
[366887479,1750551048617,-419.88726943,0.00021917,2]
[366887480,1750551048626,-460.0,0.00021917,2]
[366887481,1750551048635,-460.0,0.00021917,2]
[366887482,1750551048644,-460.0,0.00021917,2]
[366887483,1750551048653,-460.0,0.00021917,2]
[366887484,1750551048662,-279.88,0.00021917,2]
[366887485,1750551048672,-426.03708761,0.00021917,2]
[366887486,1750551048685,-196.34793689,0.00021917,2]
[366887487,1750551048696,-460.0,0.00021917,2]
[366887488,1750551048705,-430.92544149,0.00021917,2]
[366887489,1750551048715,-460.0,0.00021917,2]
[366887490,1750551048724,-460.0,0.00021917,2]
[366887491,1750551048734,-460.0,0.00021917,2]
[366887492,1750551048743,-460.0,0.00021917,2]
[366887493,1750551048754,-460.0,0.00021917,2]
[366887494,1750551048764,-460.0,0.00021917,2]
[366887495,1750551048773,-460.0,0.00021917,2]
[366887496,1750551048783,-460.0,0.00021917,2]
[366887497,1750551048792,-460.0,0.00021917,2]
[366887498,1750551048804,-460.0,0.00021917,2]
[366887499,1750551048813,-225.85361635,0.00021917,2]
[366887500,1750551048822,-460.0,0.00021917,2]
[366887501,1750551048832,-460.0,0.00021917,2]
[366887502,1750551048844,-460.0,0.00021917,2]
[366887503,1750551048853,-235.46541511,0.00021917,2]
[366887504,1750551048863,-460.0,0.00021917,2]
[366887505,1750551048872,-427.97651497,0.00021917,2]
[366887506,1750551048946,-460.0,0.00021917,2]
[366887507,1750551048957,-460.0,0.00021917,2]
[366887508,1750551048967,-460.0,0.00021917,2]
[366887509,1750551048976,-242.91747344,0.00021917,2]
[366887510,1750551048987,-440.0,0.00021917,2]
[366887511,1750551048997,-460.0,0.00021917,2]
[366887512,1750551049007,-460.0,0.00021917,2]
[366887513,1750551049017,-500.0,0.00021917,2]
[366887514,1750551049027,-461.18,0.00021917,2]
[366887515,1750551049038,-500.0,0.00021917,2]
[366887516,1750551049048,-461.18,0.00021917,2]
[366887517,1750551049058,-500.0,0.00021917,2]
[366887518,1750551049069,-463.73,0.00021917,2]
[366887519,1750551049079,-460.0,0.00021917,2]
[366887520,1750551049093,-569.11768354,0.00021917,2]
[366887521,1750551049103,-320.0,0.00021917,2]
[366887522,1750551049113,-463.73,0.00021917,2]
[366887523,1750551049124,-460.0,0.00021917,2]
[366887524,1750551049134,-463.73,0.00021917,2]
[366887525,1750551049145,-460.0,0.00021917,2]
[366887526,1750551049155,-460.0,0.00021917,2]
[366887527,1750551049165,-463.73,0.00021917,2]
[366887528,1750551049176,-262.26086521,0.00021917,2]
[366887529,1750551049186,-460.0,0.00021917,2]
[366887530,1750551049195,-463.73,0.00021917,2]
[366887531,1750551049205,-460.0,0.00021917,2]
[366887532,1750551049215,-463.73,0.00021917,2]
[366887533,1750551049225,-460.0,0.00021917,2]
[366887534,1750551049235,-460.0,0.00021917,2]
[366887535,1750551049245,-463.73,0.00021917,2]
[366887536,1750551049255,-460.0,0.00021917,2]
[366887537,1750551049265,-463.73,0.00021917,2]
[366887538,1750551049275,-460.0,0.00021917,2]
[366887539,1750551049285,-463.73,0.00021917,2]
[366887540,1750551049295,-460.0,0.00021917,2]
[366887541,1750551049305,-463.73,0.00021917,2]
[366887542,1750551049314,-413.57,0.00021917,2]
[366887543,1750551049324,-460.0,0.00021917,2]
[366887544,1750551049334,-463.73,0.00021917,2]
[366887545,1750551049346,-463.73,0.00021917,2]
[366887546,1750551049355,-463.73,0.00021917,2]
[366887547,1750551049366,-472.9,0.00021917,2]
[366887548,1750551049376,-463.73,0.00021917,2]
[366887549,1750551049386,-472.9,0.00021917,2]
[366887550,1750551049396,-463.73,0.00021917,2]
[366887551,1750551049406,-472.9,0.00021917,2]
[366887552,1750551049416,-433.80887487,0.00021917,2]
[366887553,1750551049426,-463.73,0.00021917,2]
[366887554,1750551049435,-472.9,0.00021917,2]
[366887555,1750551049445,-460.0,0.00021917,2]
[366887556,1750551049455,-472.9,0.00021917,2]
[366887557,1750551049465,-460.0,0.00021917,2]
[366887558,1750551049475,-460.0,0.00021917,2]
[366887559,1750551049485,-472.9,0.00021917,2]
[366887560,1750551049506,-460.0,0.00021917,2]
[366887561,1750551049523,-472.9,0.00021917,2]
[366887562,1750551049540,-460.0,0.00021917,2]
[366887563,1750551049561,-472.9,0.00021917,2]
[366887564,1750551049579,-460.0,0.00021917,2]
[366887565,1750551049598,-472.9,0.00021917,2]
[366887566,1750551049613,-460.0,0.00021917,2]
[366887567,1750551049631,-472.9,0.00021917,2]
[366887568,1750551049647,-460.0,0.00021917,2]
[366887569,1750551049661,-472.9,0.00021917,2]
[366887570,1750551049677,-460.0,0.00021917,2]
[366887571,1750551049696,-359.15368191,0.00021917,2]
[366887572,1750551049715,-472.9,0.00021917,2]
[366887573,1750551049729,-460.0,0.00021917,2]
[366887574,1750551049742,-472.9,0.00021917,2]
[366887575,1750551049760,-460.0,0.00021917,2]
[366887576,1750551049774,-472.9,0.00021917,2]
[366887577,1750551049790,-460.0,0.00021917,2]
[366887578,1750551049804,-472.9,0.00021917,2]
[366887579,1750551049817,-460.0,0.00021917,2]
[366887580,1750551049831,-472.9,0.00021917,2]
[366887581,1750551049846,-159.10408404,0.00021917,2]
[366887582,1750551049859,-472.9,0.00021917,2]
[366887583,1750551049872,-472.9,0.00021917,2]
[366887584,1750551049886,-472.9,0.00021917,2]
[366887585,1750551049899,-461.18,0.00021917,2]
[366887586,1750551049916,-472.9,0.00021917,2]
[366887587,1750551049931,-461.18,0.00021917,2]
[366887588,1750551049945,-461.18,0.00021917,2]
[366887589,1750551049960,-472.9,0.00021917,2]
[366887590,1750551049974,-461.18,0.00021917,2]
[366887591,1750551049992,-472.9,0.00021917,2]
[366887592,1750551050007,-461.18,0.00021917,2]
[366887593,1750551050022,-472.9,0.00021917,2]
[366887594,1750551050036,-472.9059099,0.00021917,2]
[366887595,1750551050051,-460.0,0.00021917,2]
[366887596,1750551050064,-460.0,0.00021917,2]
[366887597,1750551050078,-383.18483506,0.00021917,2]
[366887598,1750551050095,-471.65194284,0.00021917,2]
[366887599,1750551050108,-460.0,0.00021917,2]
[366887600,1750551050124,-166.0,0.00021918,2]
[366887601,1750551050136,-205.10653006,0.00021918,2]
[366887602,1750551050150,-151.0,0.00021944,2]
[366887603,1750551050164,-151.0,0.00021944,2]
[366887604,1750551050178,-151.0,0.00021944,2]
[366887605,1750551050191,-151.0,0.00021944,2]
[366887606,1750551050204,-500.0,0.00021944,2]
[366887607,1750551050217,-151.0,0.00021944,2]
[366887608,1750551050231,-151.0,0.00021944,2]
[366887609,1750551050241,-151.0,0.00021944,2]
[366887610,1750551050251,-6448.21680832,0.00021947,2]
[366887611,1750551050336,-488.685854,0.0002195,2]
[366887612,1750551050375,-198.0,0.00021972,2]
[366887613,1750551050386,-151.0,0.00021972,2]
[366887614,1750551050396,-198.0,0.00021972,2]
[366887615,1750551050406,-198.0,0.00021972,2]
[366887616,1750551050416,-500.0,0.00021972,2]
[366887617,1750551050426,-198.0,0.00021972,2]
[366887618,1750551050437,-198.0,0.00021972,2]
[366887619,1750551050447,-198.0,0.00021972,2]
[366887620,1750551050456,-500.0,0.00021973,2]
[366887621,1750551050466,-500.0,0.00021973,2]
[366887622,1750551050475,-330.57296548,0.00021973,2]
[366887623,1750551050484,-500.0,0.00021973,2]
[366887624,1750551050494,-500.0,0.00021973,2]
[366887625,1750551050503,-500.0,0.00021973,2]
[366887626,1750551050513,-500.0,0.00021973,2]
[366887627,1750551050523,-500.0,0.00021973,2]
[366887628,1750551050534,-500.0,0.00021973,2]
[366887629,1750551050543,-500.0,0.00021973,2]
[366887630,1750551050554,-446.35625141,0.00021973,2]
[366887631,1750551050563,-175.4486957,0.00021973,2]
[366887632,1750551050573,-500.0,0.00021973,2]
[366887633,1750551050584,-1318.09,0.00021999,2]
[366887634,1750551050596,-1318.09,0.00021999,2]
[366887635,1750551050606,-596.58,0.00021999,2]
[366887636,1750551050615,-596.58,0.00021999,2]
[366887637,1750551050625,-460.0,0.00021999,2]
[366887638,1750551050634,-460.0,0.00021999,2]
[366887639,1750551050644,-930.38,0.00021999,2]
[366887640,1750551050653,-930.38,0.00021999,2]
[366887641,1750551050662,-460.0,0.00021999,2]
[366887642,1750551050672,-460.0,0.00021999,2]
[366887643,1750551050681,-500.0,0.00021999,2]
[366887644,1750551050690,-500.0,0.00021999,2]
[366887645,1750551050700,-1148.09,0.00021999,2]
[366887646,1750551050709,-1148.09,0.00021999,2]
[366887647,1750551050719,-151.0,0.00021999,7]
[366887648,1750551050729,-460.0,0.00021999,2]
[366887649,1750551050739,-460.0,0.00021999,2]
[366887650,1750551050748,-1341.66,0.00021999,2]
[366887651,1750551050758,-1341.66,0.00021999,2]
[366887652,1750551050767,-2048.41,0.00021999,2]
[366887653,1750551050777,-2048.41,0.00021999,2]
[366887654,1750551050786,-460.0,0.00021999,2]
[366887655,1750551050795,-460.0,0.00021999,2]
[366887656,1750551050805,-463.73,0.00021999,2]
[366887657,1750551050814,-463.73,0.00021999,2]
[366887658,1750551050823,-233.0,0.00021999,2]
[366887659,1750551050832,-500.0,0.00021999,2]
[366887660,1750551050844,-24493.67953749,0.00022,2]
[366887661,1750551050853,-151.0,0.00022,5]
[366887662,1750551050863,-79076.21,0.00022,2]
[366887663,1750551050872,-1601.29,0.00022,7]
[366887664,1750551050881,-5553.67,0.00022,7]
[366887665,1750551050891,-151.0,0.00022,7]
[366887666,1750551050900,-165.0,0.00022,2]
[366887667,1750551050911,-151.0,0.00022,7]
[366887668,1750551050920,-151.0,0.00022,7]
[366887669,1750551050930,-151.0,0.00022,7]
[366887670,1750551050939,-151.0,0.00022,7]
[366887671,1750551050949,-151.0,0.00022,7]
[366887672,1750551050958,-171.0,0.00022,2]
[366887673,1750551050967,-6448.21680832,0.00022011,2]
[366887674,1750551050977,-500.0,0.00022027,2]
[366887675,1750551050987,-1318.09,0.00022037,2]
[366887676,1750551050996,-460.0,0.00022037,2]
[366887677,1750551051006,-930.38,0.00022037,2]
[366887678,1750551051015,-1148.09,0.00022037,2]
[366887679,1750551051024,-1341.66,0.00022037,2]
[366887680,1750551051034,-2048.41,0.00022037,2]
[366887681,1750551051043,-463.73,0.00022037,2]
[366887682,1750551051053,-500.0,0.00022054,2]
[366887683,1750551051062,-6448.21680832,0.00022076,2]
[366887684,1750551051071,-500.0,0.00022081,2]
[366887685,1750551051081,-500.0,0.00022109,2]
[366887686,1750551051091,-500.0,0.00022136,2]
[366887687,1750551051100,-500.0,0.00022164,2]
[366887688,1750551051110,-183.0,0.00022191,2]
[366887689,1750551051120,-1318.09,0.00022299,2]
[366887690,1750551051129,-1318.09,0.00022299,2]
[366887691,1750551051139,-1318.09,0.00022299,2]
[366887692,1750551051149,-1318.09,0.00022299,2]
[366887693,1750551051159,-1318.31102316,0.00022299,2]
[366887694,1750551051169,-460.0,0.00022299,2]
[366887695,1750551051179,-460.0,0.00022299,2]
[366887696,1750551051188,-205.5741174,0.00022299,2]
[366887697,1750551051199,-930.38,0.00022299,2]
[366887698,1750551051209,-930.38,0.00022299,2]
[366887699,1750551051219,-930.38,0.00022299,2]
[366887700,1750551051230,-930.38,0.00022299,2]
[366887701,1750551051241,-930.45214774,0.00022299,2]
[366887702,1750551051251,-1148.09,0.00022299,2]
[366887703,1750551051261,-1148.09,0.00022299,2]
[366887704,1750551051271,-1148.09,0.00022299,2]
[366887705,1750551051280,-1148.09,0.00022299,2]
[366887706,1750551051290,-1148.09211977,0.00022299,2]
[366887707,1750551051300,-151.0,0.00022299,7]
[366887708,1750551051309,-1341.66,0.00022299,2]
[366887709,1750551051319,-1341.66,0.00022299,2]
[366887710,1750551051329,-1341.66,0.00022299,2]
[366887711,1750551051338,-1341.66,0.00022299,2]
[366887712,1750551051349,-1341.83,0.00022299,2]
[366887713,1750551051359,-2048.41,0.00022299,2]
[366887714,1750551051369,-2048.41,0.00022299,2]
[366887715,1750551051379,-2048.41,0.00022299,2]
[366887716,1750551051388,-2048.41,0.00022299,2]
[366887717,1750551051397,-2048.45694,0.00022299,2]
[366887718,1750551051407,-463.73,0.00022299,2]
[366887719,1750551051416,-463.73,0.00022299,2]
[366887720,1750551051426,-463.73,0.00022299,2]
[366887721,1750551051437,-463.73,0.00022299,2]
[366887722,1750551051450,-463.87776426,0.00022299,2]
[366887723,1750551051461,-151.0,0.000223,7]
[366887724,1750551051471,-12549.17366507,0.00022314,7]
[366887725,1750551051480,-213.55395994,0.00022314,7]
[366887726,1750551051489,-160.0,0.00022314,7]
[366887727,1750551051499,-596.58,0.00022451,2]
[366887728,1750551051509,-460.0,0.00022451,2]
[366887729,1750551051518,-500.0,0.00022451,2]
[366887730,1750551051528,-406.02,0.00022451,2]
[366887731,1750551051537,-460.0,0.00022451,2]
[366887732,1750551051547,-151.0,0.00022462,7]
[366887733,1750551051556,-500.0,0.00022464,8]
[366887734,1750551051565,-500.0,0.00022465,2]
[366887735,1750551051574,-365.7551581,0.00022493,2]
[366887736,1750551051584,-151.0,0.000225,5]
[366887737,1750551051596,-460.0,0.000225,2]
[366887738,1750551051605,-557.45,0.000225,2]
[366887739,1750551051615,-1751.36,0.000225,2]
[366887740,1750551051626,-460.0,0.000225,2]
[366887741,1750551051635,-460.0,0.000225,2]
[366887742,1750551051644,-460.0,0.000225,2]
[366887743,1750551051654,-460.0,0.000225,2]
[366887744,1750551051664,-461.18,0.000225,2]
[366887745,1750551051673,-151.0,0.00022519,7]
[366887746,1750551051683,-816.51153914,0.00022521,2]
[366887747,1750551051693,-1000.0,0.00022521,2]
[366887748,1750551051702,-1000.0,0.00022521,2]
[366887749,1750551051712,-1000.0,0.00022521,2]
[366887750,1750551051722,-1000.0,0.00022521,2]
[366887751,1750551051731,-1000.0,0.00022521,2]
[366887752,1750551051741,-1000.0,0.00022521,2]
[366887753,1750551051750,-596.58,0.00022623,2]
[366887754,1750551051760,-460.0,0.00022623,2]
[366887755,1750551051769,-500.0,0.00022623,2]
[366887756,1750551051780,-460.0,0.00022623,2]
[366887757,1750551051789,-596.58,0.00022693,2]
[366887758,1750551051799,-460.0,0.00022693,2]
[366887759,1750551051808,-531.74412762,0.00022693,2]
[366887760,1750551051818,-500.0,0.00022693,2]
[366887761,1750551051827,-1751.36,0.00022693,2]
[366887762,1750551051837,-261.71842429,0.00022693,2]
[366887763,1750551051850,-460.0,0.00022693,2]
[366887764,1750551051859,-151.0,0.00022693,7]
[366887765,1750551051869,-460.0,0.00022693,2]
[366887766,1750551051878,-460.0,0.00022693,2]
[366887767,1750551051888,-460.0,0.00022693,2]
[366887768,1750551051898,-461.18,0.00022693,2]
[366887769,1750551051910,-151.0,0.000228,9]
[366887770,1750551051920,-669.34391016,0.00022805,2]
[366887771,1750551051929,-160.0,0.00022882,2]
[366887772,1750551051938,-160.0,0.00022882,2]
[366887773,1750551051949,-160.0,0.00022882,2]
[366887774,1750551051958,-160.0,0.00022882,2]
[366887775,1750551051967,-160.0,0.00022882,2]
[366887776,1750551051977,-160.0,0.00022882,2]
[366887777,1750551051986,-424.93363889,0.00022882,2]
[366887778,1750551051995,-160.0,0.00022882,2]
[366887779,1750551052076,-846.23824438,0.00022882,2]
[366887780,1750551052085,-836.41202323,0.00022882,2]
[366887781,1750551052096,-160.0,0.00022882,2]
[366887782,1750551052106,-213.55395994,0.00022882,2]
[366887783,1750551052115,-12549.17366507,0.00022882,2]
[366887784,1750551052125,-230.10342898,0.00022882,2]
[366887785,1750551052134,-160.0,0.00022882,2]
[366887786,1750551052144,-162.6231934,0.00022904,2]
[366887787,1750551052153,-176.6642544,0.00022904,2]
[366887788,1750551052163,-295.099902,0.00022904,2]
[366887789,1750551052173,-168.17519988,0.00022968,2]
[366887790,1750551052182,-600.0,0.00022973,2]
[366887791,1750551052192,-555.82829724,0.00022973,2]
[366887792,1750551052201,-502.97608695,0.00022973,2]
[366887793,1750551052211,-500.0,0.00022973,2]
[366887794,1750551052220,-579.6336408,0.00022973,2]
[366887795,1750551052229,-500.0,0.00022973,2]
[366887796,1750551052239,-500.0,0.00022973,2]
[366887797,1750551052248,-500.0,0.00022973,2]
[366887798,1750551052258,-500.0,0.00022973,2]
[366887799,1750551052267,-500.0,0.00022973,2]
[366887800,1750551052277,-500.0,0.00022973,2]
[366887801,1750551052287,-151.0,0.00023,9]
[366887802,1750551052297,-79076.21,0.00023,2]
[366887803,1750551052307,-1601.29,0.00023,7]
[366887804,1750551052316,-5553.67,0.00023,7]
[366887805,1750551052326,-151.0,0.00023,7]
[366887806,1750551052335,-151.0,0.00023,7]
[366887807,1750551052348,-151.0,0.00023,7]
[366887808,1750551052358,-151.0,0.00023,7]
[366887809,1750551052367,-169.720747,0.00023,7]
[366887810,1750551052377,-193.87763,0.00023,7]
[366887811,1750551052387,-151.0,0.00023,7]
[366887812,1750551052396,-460.0,0.00023003,2]
[366887813,1750551052406,-1751.36,0.00023003,2]
[366887814,1750551052416,-460.0,0.00023003,2]
[366887815,1750551052425,-460.0,0.00023003,2]
[366887816,1750551052435,-460.0,0.00023003,2]
[366887817,1750551052444,-461.18,0.00023003,2]
[366887818,1750551052453,-500.0,0.00023012,9]
[366887819,1750551052463,-165.0,0.00023014,7]
[366887820,1750551052472,-171.0,0.00023014,7]
[366887821,1750551052482,-1500.0,0.00023068,2]
[366887822,1750551052492,-509.8766494,0.00023068,2]
[366887823,1750551052501,-521.63883518,0.00023068,2]
[366887824,1750551052510,-515.63517607,0.00023068,2]
[366887825,1750551052520,-151.0,0.000231,9]
[366887826,1750551052529,-596.58,0.0002314,2]
[366887827,1750551052539,-500.0,0.0002314,2]
[366887828,1750551052548,-460.0,0.0002314,2]
[366887829,1750551052558,-151.0,0.000232,6]
[366887830,1750551052567,-151.0,0.000232,6]
[366887831,1750551052576,-596.58,0.00023276,2]
[366887832,1750551052586,-460.0,0.00023276,2]
[366887833,1750551052597,-500.0,0.00023276,2]
[366887834,1750551052607,-1751.36,0.00023276,2]
[366887835,1750551052617,-460.0,0.00023276,2]
[366887836,1750551052626,-460.0,0.00023276,2]
[366887837,1750551052635,-460.0,0.00023276,2]
[366887838,1750551052645,-460.0,0.00023276,2]
[366887839,1750551052655,-461.18,0.00023276,2]
[366887840,1750551052665,-160.0,0.00023277,3]
[366887841,1750551052675,-12549.17366507,0.00023277,3]
[366887842,1750551052685,-160.0,0.00023277,3]
[366887843,1750551052695,-836.41202323,0.00023277,3]
[366887844,1750551052705,-230.10342898,0.00023277,3]
[366887845,1750551052716,-160.0,0.00023277,3]